fUST/lending_fUST_20251018
["ID","MTS","AMOUNT","RATE_DAILY","PERIOD"]
[391767601,1760788240519,-168.0,0.0002554,2]
[391767603,1760788240528,-982.0,0.00025546,2]
[391767604,1760788240538,-411.0,0.00025546,2]
[391767605,1760788240547,-423.986,0.00025546,2]
[391767606,1760788240556,-631.0,0.00025546,2]
[391767607,1760788240565,-2162.0,0.00025546,2]
[391767608,1760788240574,-4202.0,0.00025546,2]
[391767609,1760788240583,-500.0,0.00025553,5]
[391767610,1760788240593,-1500.0,0.00025568,2]
[391767611,1760788240603,-1500.0,0.00025568,2]
[391767612,1760788240612,-269.48245423,0.00025568,2]
[391767613,1760788240621,-1500.0,0.00025568,2]
[391767614,1760788240630,-1389.93223469,0.00025568,2]
[391767615,1760788240639,-1500.0,0.00025568,2]
[391767616,1760788240648,-1500.0,0.00025568,2]
[391767617,1760788240657,-160.0,0.00025593,2]
[391767618,1760788240666,-6829.41259809,0.00025605,2]
[391767619,1760788240676,-519.89706419,0.00025753,2]
[391767620,1760788240685,-199.0,0.00025753,9]
[391767621,1760788240695,-168.0,0.00025771,2]
[391767622,1760788240704,-515.79,0.00025827,5]
[391767623,1760788240714,-1442.06299186,0.00025868,2]
[391767624,1760788240723,-1500.0,0.00025868,2]
[391767625,1760788240732,-1500.0,0.00025868,2]
[391767626,1760788240741,-511.57720738,0.00025868,2]
[391767627,1760788240750,-1500.0,0.00025868,2]
[391767628,1760788240760,-350.0,0.00025968,2]
[391767629,1760788240769,-6829.41259809,0.00026016,2]
[391767630,1760788240778,-168.0,0.00026025,2]
[391767631,1760788240788,-199.0,0.00026027,10]
[391767632,1760788240797,-952.63336648,0.00026086,2]
[391767633,1760788240807,-904.39946828,0.00026106,2]
[391767634,1760788240816,-2000.0,0.00026116,2]
[391767635,1760788240825,-2000.0,0.00026116,2]
[391767636,1760788240834,-508.35601886,0.00026116,2]
[391767637,1760788240843,-2000.0,0.00026116,2]
[391767638,1760788240853,-2000.0,0.00026116,2]
[391767639,1760788240863,-257.21678969,0.0002612,2]
[391767640,1760788240872,-260.0,0.00026141,2]
[391767641,1760788240881,-904.39946828,0.00026291,2]
[391767642,1760788240890,-199.0,0.00026301,11]
[391767643,1760788240900,-168.0,0.00026348,2]
[391767644,1760788240909,-151.0,0.000264,17]
[391767645,1760788240918,-2000.0,0.00026416,2]
[391767646,1760788240928,-2000.0,0.00026416,2]
[391767647,1760788240937,-2000.0,0.00026416,2]
[391767648,1760788240947,-420.0,0.0002642,2]
[391767649,1760788240956,-450.0,0.00026516,2]
[391767650,1760788240966,-290.0,0.0002654,2]
[391767651,1760788240975,-199.0,0.00026575,12]
[391767652,1760788240985,-168.0,0.00026621,2]
[391767653,1760788240995,-168.0,0.00026621,2]
[391767654,1760788241005,-987.88080104,0.00026634,2]
[391767655,1760788241015,-2033.48936439,0.00026664,2]
[391767656,1760788241024,-2500.0,0.00026664,2]
[391767657,1760788241034,-1733.87494085,0.00026664,2]
[391767658,1760788241044,-2142.4002264,0.00026664,2]
[391767659,1760788241053,-168.0,0.00026675,2]
[391767660,1760788241063,-360.0,0.00026689,2]
[391767661,1760788241073,-283.82542311,0.0002672,2]
[391767662,1760788241083,-904.39946828,0.0002675,2]
[391767663,1760788241092,-199.0,0.00026849,13]
[391767664,1760788241101,-168.0,0.00026876,2]
[391767665,1760788241110,-168.0,0.00026934,2]
[391767666,1760788241120,-2500.0,0.00026964,2]
[391767667,1760788241130,-2500.0,0.00026964,2]
[391767668,1760788241139,-2500.0,0.00026964,2]
[391767669,1760788241149,-153.0,0.00026979,2]
[391767670,1760788241158,-153.0,0.00026979,2]
[391767671,1760788241169,-550.0,0.00027064,2]
[391767672,1760788241178,-546.64795097,0.00027069,2]
[391767673,1760788241188,-462.510824,0.000271,10]
[391767674,1760788241198,-199.0,0.00027123,14]
[391767675,1760788241207,-212.90707932,0.00027123,2]
[391767676,1760788241218,-151.0,0.00027123,2]
[391767677,1760788241230,-500.0,0.00027123,2]
[391767678,1760788241240,-500.0,0.00027123,2]
[391767679,1760788241251,-155.8684396,0.00027178,2]
[391767680,1760788241260,-500.0,0.00027178,2]
[391767681,1760788241271,-500.0,0.00027178,2]
[391767682,1760788241282,-1024.43239068,0.00027182,2]
[391767683,1760788241291,-2018.9308506,0.00027212,2]
[391767684,1760788241300,-500.0,0.00027233,2]
[391767685,1760788241310,-500.0,0.00027233,2]
[391767686,1760788241319,-460.0,0.00027237,2]
[391767687,1760788241328,-500.0,0.00027287,2]
[391767688,1760788241338,-500.0,0.00027287,2]
[391767689,1760788241349,-300.0,0.00027296,7]
[391767690,1760788241358,-310.43405653,0.0002732,2]
[391767691,1760788241367,-500.0,0.00027342,2]
[391767692,1760788241377,-500.0,0.00027342,2]
[391767693,1760788241387,-500.0,0.00027397,2]
[391767694,1760788241396,-500.0,0.00027397,2]
[391767695,1760788241406,-199.0,0.00027397,15]
[391767696,1760788241416,-150.0,0.00027397,5]
[391767697,1760788241426,-500.0,0.00027397,5]
[391767698,1760788241436,-2825.8,0.000274,2]
[391767699,1760788241446,-499.3,0.00027409,7]
[391767700,1760788241456,-720.0,0.0002744,30]
[391767701,1760788241466,-500.0,0.00027452,2]
[391767702,1760788241476,-168.0,0.00027462,2]
[391767703,1760788241486,-503.01623366,0.00027463,7]
[391767704,1760788241498,-3167.1,0.000275,2]
[391767705,1760788241509,-500.0,0.00027507,2]
[391767706,1760788241521,-3000.0,0.00027512,5]
[391767707,1760788241531,-3000.0,0.00027512,5]
[391767708,1760788241540,-824.94049382,0.00027512,5]
[391767709,1760788241550,-397.77737133,0.00027561,2]
[391767710,1760788241560,-502.13637244,0.00027612,5]
[391767711,1760788241570,-199.0,0.00027671,16]
[391767712,1760788241580,-904.39946828,0.0002771,2]
[391767713,1760788241590,-500.0,0.0002773,5]
[391767714,1760788241600,-1062.33638913,0.0002773,2]
[391767715,1760788241610,-560.0,0.00027785,2]
[391767716,1760788241619,-183.759,0.00027885,18]
[391767717,1760788241628,-179.42,0.00027885,18]
[391767718,1760788241638,-337.04268994,0.0002792,2]
[391767719,1760788241648,-199.0,0.00027945,17]
[391767720,1760788241659,-250.0,0.00027945,5]
[391767721,1760788241669,-1001.62621845,0.00027945,5]
[391767722,1760788241678,-1500.0,0.00028,2]
[391767723,1760788241688,-1500.0,0.00028,2]
[391767724,1760788241697,-1500.0,0.00028,2]
[391767725,1760788241707,-1500.0,0.00028,2]
[391767726,1760788241716,-1500.0,0.00028,2]
[391767727,1760788241727,-1500.0,0.00028,2]
[391767728,1760788241737,-1500.0,0.00028,2]
[391767729,1760788241747,-1500.0,0.00028,2]
[391767730,1760788241758,-1500.0,0.00028,2]
[391767731,1760788241767,-1500.0,0.00028,2]
[391767732,1760788241776,-914.79,0.00028,2]
[391767733,1760788241786,-1000.0,0.00028,2]
[391767734,1760788241795,-3500.0,0.0002806,5]
[391767735,1760788241804,-3500.0,0.0002806,5]
[391767736,1760788241814,-23842.06,0.000281,7]
[391767737,1760788241926,-179.64071856,0.00028127,2]
[391767738,1760788241951,-151.0,0.00028219,30]
[391767739,1760788241960,-151.0,0.00028219,30]
[391767740,1760788241970,-151.0,0.00028219,30]
[391767741,1760788241979,-612.272005,0.00028219,30]
[391767742,1760788241988,-612.272005,0.00028219,30]
[391767743,1760788241998,-612.272005,0.00028219,30]
[391767744,1760788242007,-151.0,0.00028219,30]
[391767745,1760788242016,-612.272005,0.00028219,30]
[391767746,1760788242026,-151.0,0.00028219,30]
[391767747,1760788242036,-151.0,0.00028219,30]
[391767748,1760788242045,-151.0,0.00028219,30]
[391767749,1760788242055,-151.0,0.00028219,30]
[391767750,1760788242064,-151.0,0.00028219,30]
[391767751,1760788242075,-151.0,0.00028219,30]
[391767752,1760788242084,-199.0,0.00028219,18]
[391767753,1760788242094,-5057.73,0.00028219,2]
[391767754,1760788242103,-151.0,0.00028219,30]
[391767755,1760788242112,-180.734418,0.00028219,30]
[391767756,1760788242122,-1101.64283553,0.00028278,2]
[391767757,1760788242131,-660.0,0.00028333,2]
[391767758,1760788242141,-151.0,0.00028479,30]
[391767759,1760788242150,-151.0,0.00028479,30]
[391767760,1760788242160,-151.0,0.00028479,30]
[391767761,1760788242169,-199.0,0.00028493,19]
[391767762,1760788242179,-350.0,0.00028493,5]
[391767763,1760788242188,-182.12601999,0.000285,2]
[391767764,1760788242201,-176.65557892,0.000285,2]
[391767765,1760788242211,-175.97057362,0.000285,2]
[391767766,1760788242224,-171.16272657,0.000285,2]
[391767767,1760788242233,-249.81311393,0.000285,2]
[391767768,1760788242242,-194.42077675,0.000285,2]
[391767769,1760788242251,-203.8437449,0.000285,2]
[391767770,1760788242260,-210.06973291,0.000285,2]
[391767771,1760788242269,-167.41556492,0.000285,2]
[391767772,1760788242279,-160.144196,0.000285,2]
[391767773,1760788242288,-193.99532146,0.000285,2]
[391767774,1760788242298,-363.65132336,0.0002852,2]
[391767775,1760788242308,-155.0,0.00028521,29]
[391767776,1760788242319,-982.0,0.00028546,2]
[391767777,1760788242329,-411.0,0.00028546,2]
[391767778,1760788242339,-411.0,0.00028546,2]
[391767779,1760788242351,-631.0,0.00028546,2]
[391767780,1760788242360,-2162.0,0.00028546,2]
[391767781,1760788242369,-2825.8,0.000286,2]
[391767782,1760788242379,-151.0,0.000286,11]
[391767783,1760788242389,-4000.0,0.00028608,5]
[391767784,1760788242401,-4000.0,0.00028608,5]
[391767785,1760788242411,-587.0,0.0002864,2]
[391767786,1760788242420,-176.65557892,0.000287,2]
[391767787,1760788242429,-171.16272657,0.000287,2]
[391767788,1760788242439,-203.8437449,0.000287,2]
[391767789,1760788242448,-210.06973291,0.000287,2]
[391767790,1760788242457,-151.0,0.000287,30]
[391767791,1760788242467,-151.0,0.000287,30]
[391767792,1760788242477,-151.0,0.000287,30]
[391767793,1760788242487,-151.0,0.000287,30]
[391767794,1760788242497,-199.0,0.00028767,20]
[391767795,1760788242507,-1142.40362045,0.00028826,2]
[391767796,1760788242516,-500.0,0.00028827,7]
[391767797,1760788242525,-760.0,0.00028881,2]
[391767798,1760788242535,-176.65557892,0.00029,2]
[391767799,1760788242544,-210.06973291,0.00029,2]
[391767800,1760788242553,-1224.63,0.00029,2]
[391767801,1760788242562,-199.0,0.00029041,21]
[391767802,1760788242571,-450.0,0.00029041,5]
[391767803,1760788242580,-600.0,0.00029088,2]
[391767804,1760788242590,-390.25995678,0.0002912,2]
[391767805,1760788242599,-892.30314887,0.0002914,2]
[391767806,1760788242609,-4500.0,0.00029156,5]
[391767807,1760788242619,-4025.84491105,0.00029156,5]
[391767808,1760788242628,-1224.63,0.00029174,2]
[391767809,1760788242637,-500.0,0.00029247,7]
[391767810,1760788242647,-210.06973291,0.000293,2]
[391767811,1760788242656,-307.01827292,0.000293,2]
[391767812,1760788242665,-327.55116367,0.000293,2]
[391767813,1760788242675,-589.59209461,0.000293,2]
[391767814,1760788242685,-1048.16372375,0.000293,2]
[391767815,1760788242694,-1637.75581835,0.000293,2]
[391767816,1760788242704,-2358.36837843,0.000293,2]
[391767817,1760788242712,-3210.00140397,0.000293,2]
[391767818,1760788242723,-4192.65489498,0.000293,2]
[391767819,1760788242732,-5306.32885147,0.000293,2]
[391767820,1760788242742,-6551.02327341,0.000293,2]
[391767821,1760788242751,-7926.73816083,0.000293,2]
[391767822,1760788242760,-9433.47351372,0.000293,2]
[391767823,1760788242769,-199.0,0.00029315,22]
[391767824,1760788242778,-500.0,0.00029332,7]
[391767825,1760788242787,-1224.63,0.00029348,2]
[391767826,1760788242796,-1184.6725544,0.00029374,2]
[391767827,1760788242806,-600.0,0.00029391,2]
[391767828,1760788242815,-860.0,0.00029428,2]
[391767829,1760788242824,-151.0,0.00029589,30]
[391767830,1760788242833,-199.0,0.00029589,23]
[391767831,1760788242842,-5057.73,0.00029589,4]
[391767832,1760788242851,-550.0,0.00029589,5]
[391767833,1760788242861,-210.06973291,0.000296,2]
[391767834,1760788242871,-3167.1,0.000296,2]
[391767835,1760788242880,-600.0,0.00029694,2]
[391767836,1760788242890,-5000.0,0.00029704,5]
[391767837,1760788242899,-416.86859019,0.0002972,2]
[391767838,1760788242909,-546.64795097,0.00029781,2]
[391767839,1760788242919,-502.55573725,0.00029786,7]
[391767840,1760788242928,-2825.8,0.000298,2]
[391767841,1760788242939,-1631.445633,0.000298,3]
[391767843,1760788242950,-152.960521,0.00029825,5]
[391767845,1760788242959,-152.960521,0.0002985,7]
[391767846,1760788242968,-199.0,0.00029863,24]
[391767847,1760788242977,-1228.50543892,0.00029922,2]
[391767848,1760788242987,-960.0,0.00029976,2]
[391767849,1760788242996,-221.32229046,0.0003,2]
[391767850,1760788243005,-1000.0,0.0003,14]
[391767851,1760788243015,-1000.0,0.0003,4]
[391767852,1760788243025,-261.09292072,0.00030036,12]
[391767853,1760788243034,-300.0,0.00030136,120]
[391767854,1760788243043,-2018.42299926,0.00030136,2]
[391767855,1760788243052,-199.0,0.00030136,25]
[391767856,1760788243061,-270.13631335,0.00030137,30]
[391767857,1760788243071,-304.84595855,0.00030137,5]
[391767858,1760788243080,-800.0,0.00030149,2]
[391767859,1760788243090,-168.195054,0.0003018,5]
[391767860,1760788243099,-152.960521,0.0003018,5]
[391767861,1760788243108,-864.0,0.00030184,30]
[391767862,1760788243118,-2298.0818633,0.00030192,2]
[391767863,1760788243127,-154.6961887,0.00030192,2]
[391767864,1760788243137,-6115.2446961,0.00030192,2]
[391767865,1760788243147,-151.0,0.00030192,30]
[391767866,1760788243157,-151.0,0.00030192,30]
[391767867,1760788243167,-800.0,0.00030199,2]
[391767868,1760788243176,-500.0,0.00030233,7]
[391767869,1760788243186,-1686.75000372,0.00030252,5]
[391767870,1760788243197,-251.27593264,0.00030273,120]
[391767871,1760788243207,-270.13631335,0.00030274,30]
[391767872,1760788243221,-1458.52761578,0.00030283,4]
[391767873,1760788243232,-151.0,0.00030283,30]
[391767874,1760788243242,-151.0,0.00030283,30]
[391767875,1760788243253,-151.0,0.00030283,30]
[391767876,1760788243262,-268.973057,0.00030283,30]
[391767877,1760788243271,-23842.06,0.000303,7]
[391767878,1760788243283,-151.0,0.000303,7]
[391767879,1760788243295,-177.662672,0.000303,30]
[391767880,1760788243307,-151.0,0.000303,30]
[391767881,1760788243318,-151.0,0.000303,30]
[391767882,1760788243329,-277.113504,0.000303,30]
[391767883,1760788243339,-151.0,0.000303,30]
[391767884,1760788243349,-150.0,0.000303,5]
[391767885,1760788243359,-168.195054,0.000303,7]
[391767886,1760788243368,-152.960521,0.000303,7]
[391767887,1760788243376,-221.23451577,0.000303,3]
[391767888,1760788243386,-1500.0,0.000303,3]
[391767889,1760788243395,-443.47722361,0.0003032,2]
[391767890,1760788243404,-153.0,0.000304,120]
[391767891,1760788243413,-1077.34117926,0.000304,2]
[391767892,1760788243423,-189.21008692,0.000304,2]
[391767893,1760788243432,-160.144196,0.000304,2]
[391767894,1760788243441,-704.98425132,0.000304,2]
[391767895,1760788243450,-208.80050278,0.000304,2]
[391767896,1760788243459,-1120.77724024,0.000304,2]
[391767897,1760788243468,-160.0,0.00030403,3]
[391767898,1760788243478,-1253.29,0.0003041,5]
[391767899,1760788243487,-199.0,0.0003041,26]
[391767900,1760788243496,-270.13631335,0.00030411,30]
[391767901,1760788243505,-151.0,0.0003047,30]
[391767902,1760788243514,-151.0,0.0003047,30]
[391767903,1760788243523,-235.563625,0.0003047,30]
[391767904,1760788243532,-151.0,0.0003047,30]
[391767905,1760788243542,-668.98799,0.000305,120]
[391767906,1760788243551,-378.83518,0.000305,120]
[391767907,1760788243560,-500.0,0.00030524,5]
[391767908,1760788243569,-1060.0,0.00030524,2]
[391767909,1760788243579,-270.13631335,0.00030575,30]
[391767910,1760788243588,-1253.29,0.00030684,5]
[391767911,1760788243597,-199.0,0.00030684,27]
[391767912,1760788243606,-1077.34117926,0.000307,2]
[391767913,1760788243616,-189.21008692,0.000307,2]
[391767914,1760788243627,-160.144196,0.000307,2]
[391767915,1760788243637,-704.98425132,0.000307,2]
[391767916,1760788243646,-208.80050278,0.000307,2]
[391767917,1760788243656,-1120.77724024,0.000307,2]
[391767918,1760788243665,-270.13631335,0.00030712,30]
[391767919,1760788243675,-500.0,0.00030798,5]
[391767920,1760788243684,-151.0,0.000308,17]
[391767921,1760788243694,-150.0,0.00030819,2]
[391767922,1760788243703,-270.13631335,0.00030849,30]
[391767923,1760788243711,-470.08585703,0.0003092,2]
[391767924,1760788243721,-1253.29,0.00030958,5]
[391767925,1760788243731,-151.0,0.00030958,30]
[391767926,1760788243740,-192.4304022,0.00030958,30]
[391767927,1760788243750,-151.0,0.00030958,30]
[391767928,1760788243759,-151.0,0.00030958,30]
[391767929,1760788243769,-151.0,0.00030958,30]
[391767930,1760788243778,-151.0,0.00030958,30]
[391767931,1760788243787,-199.0,0.00030958,28]
[391767932,1760788243796,-5057.73,0.00030958,6]
[391767933,1760788243805,-303.41833869,0.0003099,2]
[391767934,1760788243814,-1077.34117926,0.00031,2]
[391767935,1760788243824,-189.21008692,0.00031,2]
[391767936,1760788243833,-160.144196,0.00031,2]
[391767937,1760788243843,-704.98425132,0.00031,2]
[391767938,1760788243852,-200.0,0.00031,120]
[391767939,1760788243862,-2825.8,0.00031,2]
[391767940,1760788243872,-270.13631335,0.00031014,30]
[391767941,1760788243881,-823.0,0.00031047,2]
[391767942,1760788243891,-526.94179293,0.00031072,5]
[391767943,1760788243900,-1160.0,0.00031072,2]
[391767944,1760788243909,-1120.77724024,0.000311,2]
[391767945,1760788243919,-270.13631335,0.00031151,30]
[391767946,1760788243928,-3167.1,0.000312,2]
[391767947,1760788243937,-1253.29,0.00031232,5]
[391767948,1760788243947,-280.73819981,0.00031232,29]
[391767949,1760788243957,-270.13631335,0.00031288,30]
[391767950,1760788243976,-1077.34117926,0.000313,2]
[391767951,1760788243987,-189.21008692,0.000313,2]
[391767952,1760788243996,-704.98425132,0.000313,2]
[391767953,1760788244006,-159.97,0.00031378,15]
[391767954,1760788244016,-825.04,0.00031381,15]
[391767955,1760788244026,-156.88,0.00031384,15]
[391767956,1760788244035,-1120.77724024,0.000314,2]
[391767957,1760788244045,-152.960521,0.0003144,15]
[391767958,1760788244056,-270.13631335,0.00031452,30]
[391767959,1760788244066,-159.98423559,0.00031478,15]
[391767960,1760788244075,-825.04,0.00031481,15]
[391767961,1760788244085,-156.88327755,0.00031484,15]
[391767962,1760788244095,-160.0,0.00031484,4]
[391767963,1760788244105,-3036.9280606,0.000315,2]
[391767964,1760788244115,-1789.8,0.000315,6]
[391767965,1760788244124,-1253.29,0.00031506,5]
[391767966,1760788244134,-496.69449044,0.0003152,2]
[391767967,1760788244144,-982.0,0.00031546,2]
[391767968,1760788244154,-411.0,0.00031546,2]
[391767969,1760788244163,-411.0,0.00031546,2]
[391767970,1760788244174,-631.0,0.00031546,2]
[391767971,1760788244183,-2162.0,0.00031546,2]
[391767972,1760788244193,-825.04,0.00031581,15]
[391767973,1760788244204,-270.13631335,0.00031589,30]
[391767974,1760788244213,-276.86094454,0.00031614,30]
[391767975,1760788244227,-1260.0,0.0003162,2]
[391767976,1760788244236,-5828.27635267,0.00031626,4]
[391767977,1760788244245,-825.04,0.00031681,15]
[391767978,1760788244255,-1120.77724024,0.000317,2]
[391767979,1760788244264,-270.13631335,0.00031726,30]
[391767980,1760788244274,-251.10903661,0.00031735,30]
[391767981,1760788244283,-197.0,0.00031776,120]
[391767982,1760788244292,-1253.29,0.0003178,5]
[391767983,1760788244303,-825.04,0.00031781,15]
[391767984,1760788244312,-23842.06,0.000318,7]
[391767985,1760788244323,-500.0,0.00031865,7]
[391767986,1760788244333,-825.04,0.00031881,15]
[391767987,1760788244344,-152.960521,0.0003192,15]
[391767988,1760788244354,-500.0,0.00031924,7]
[391767989,1760788244364,-8030.0,0.00031932,2]
[391767990,1760788244374,-825.04,0.00031981,15]
[391767991,1760788244383,-153.0,0.00032,120]
[391767992,1760788244393,-1120.77724024,0.00032,2]
[391767993,1760788244402,-300.0,0.00032,120]
[391767994,1760788244411,-160.0,0.00032,30]
[391767995,1760788244419,-1253.29,0.00032053,5]
[391767996,1760788244427,-825.04,0.00032081,15]
[391767997,1760788244436,-2825.8,0.000321,2]
[391767998,1760788244444,-523.30312386,0.0003212,2]
[391767999,1760788244453,-1360.0,0.00032168,2]
[391768000,1760788244462,-825.04,0.00032181,15]
[391768001,1760788244471,-668.98799,0.000322,120]
[391768002,1760788244481,-500.0,0.00032262,7]
[391768003,1760788244491,-825.04,0.00032281,15]
[391768004,1760788244500,-1253.49982394,0.00032327,5]
[391768005,1760788244509,-5057.73,0.00032328,8]
[391768006,1760788244519,-825.04,0.00032381,15]
[391768007,1760788244529,-825.04,0.00032481,15]
[391768008,1760788244539,-546.64795097,0.00032494,2]
[391768009,1760788244549,-160.0,0.00032565,5]
[391768010,1760788244559,-825.04,0.00032581,15]
[391768011,1760788244571,-3167.1,0.000326,2]
[391768012,1760788244580,-825.04,0.00032681,15]
[391768013,1760788244590,-500.0,0.000327,7]
[391768014,1760788244599,-1460.0,0.00032716,2]
[391768015,1760788244608,-549.91175727,0.0003272,2]
[391768016,1760788244618,-825.04,0.00032781,15]
[391768017,1760788244628,-254.26848576,0.00032877,2]
[391768018,1760788244638,-220.0,0.00032877,5]
[391768019,1760788244647,-825.04,0.00032881,60]
[391768020,1760788244657,-200.0,0.00032948,120]
[391768021,1760788244667,-825.04,0.00032981,60]
[391768022,1760788244676,-866.3874819,0.00033,2]
[391768023,1760788244686,-625894.23068519,0.00033,5]
[391768024,1760788244857,-1006.901418,0.000303,3]
[391768025,1760788244867,-37755.3428213,0.00033,5]
[391768031,1760788246868,-150.0,0.00025546,2]
[391768032,1760788246878,-150.0,0.00028546,2]
[391768033,1760788246887,-48.67912962,0.00031546,2]
[391768034,1760788375094,500.0,0.00034006,120]
[391768035,1760788375334,500.0,0.00034006,120]
[391768036,1760788375582,565.83954977,0.00034006,120]
[391768037,1760788455606,421.01,0.00034006,120]
[391768038,1760788478930,500.0,0.00034006,120]
[391768039,1760788493401,500.0,0.00034006,120]
[391768040,1760788638830,500.0,0.00034006,120]
[391768041,1760788639070,500.0,0.00034006,120]
[391768042,1760788639336,500.0,0.00034006,120]
[391768043,1760788639576,500.0,0.00034006,120]
[391768044,1760788639807,500.0,0.00034006,120]
[391768045,1760788640559,500.0,0.00034006,120]
[391768046,1760788641246,500.0,0.00034006,120]
[391768047,1760788641486,500.0,0.00034006,120]
[391768048,1760788641721,500.0,0.00034006,120]
[391768049,1760788641964,500.0,0.00034006,120]
[391768059,1760788814991,743.137452,0.00013699,2]
[391768060,1760788815192,743.137452,0.00020187,2]
[391768062,1760788839854,500.0,0.00033967,120]
[391768063,1760788840095,500.0,0.00033967,120]
[391768064,1760788840349,500.0,0.00033967,120]
[391768065,1760788840594,500.0,0.00033967,120]
[391768066,1760788840847,500.0,0.00033967,120]
[391768067,1760788841089,500.0,0.00033967,120]
[391768068,1760788841330,500.0,0.00033967,120]
[391768069,1760788841557,500.0,0.00033967,120]
[391768070,1760788841810,500.0,0.00033967,120]
[391768071,1760788842060,500.0,0.00033967,120]
[391768072,1760788842317,500.0,0.00033967,120]
[391768073,1760788842597,500.0,0.00033967,120]
[391768074,1760788842854,500.0,0.00033967,120]
[391768075,1760788843091,500.0,0.00033967,120]
[391768076,1760788843334,500.0,0.00033967,120]
[391768077,1760788843643,500.0,0.00033967,120]
[391768078,1760788843885,499.78,0.00033967,120]
[391768080,1760789037603,20009.35,0.00033967,60]
[391768111,1760789432582,-345.04659234,0.000245,7]
[391768113,1760789432594,-72.10813551,0.000245,7]
[391768115,1760789432603,-150.0,0.000245,10]
[391768117,1760789432612,-150.0,0.000245,2]
[391768119,1760789432622,-161.0,0.00024685,14]
[391768121,1760789432631,-273.32397552,0.00025,2]
[391768123,1760789432640,-172.5,0.000251,2]
[391768124,1760789432649,-234.0,0.00025284,2]
[391768126,1760789432658,-300.0,0.00025284,2]
[391768128,1760789432668,-1200.0,0.00025284,2]
[391768130,1760789432676,-300.0,0.00025285,20]
[391768132,1760789432686,-300.0,0.00025285,20]
[391768133,1760789432696,-300.0,0.00025285,20]
[391768134,1760789432705,-300.0,0.00025285,20]
[391768135,1760789432714,-132.3156782,0.00025285,20]
[391768137,1760789432726,-167.6843218,0.00025285,20]
[391768139,1760789432735,-300.0,0.00025285,20]
[391768141,1760789432745,-300.0,0.00025285,20]
[391768143,1760789432754,-133.67210057,0.00025285,20]
[391768144,1760789432766,-166.32789943,0.00025285,20]
[391768145,1760789432775,-300.0,0.00025285,20]
[391768146,1760789432785,-33.67210057,0.00025285,20]
[391768188,1760789440744,-266.32789943,0.00025285,20]
[391768189,1760789440757,-262.56261164,0.00025285,20]
[391768214,1760789444081,-37.43738836,0.00025285,20]
[391768216,1760789444091,-300.0,0.00025285,20]
[391768218,1760789444100,-300.0,0.00025285,20]
[391768220,1760789444109,-300.0,0.00025285,20]
[391768222,1760789444118,-300.0,0.00025285,20]
[391768224,1760789444127,-982.0,0.00025381,2]
[391768226,1760789444136,-631.0,0.00025381,2]
[391768228,1760789444146,-2162.0,0.00025381,2]
[391768230,1760789444156,-150.0,0.00025546,2]
[391768232,1760789444166,-150.0,0.00025546,2]
[391768234,1760789444175,-195.0,0.000257,2]
[391768236,1760789444184,-600.0,0.0002579,20]
[391768237,1760789444193,-150.0,0.00025818,2]
[391768239,1760789444202,-150.0,0.00025818,2]
[391768241,1760789444211,-500.0,0.00026114,2]